Cogmind - Beta 14 @@@ ROGUE MODE // 2024.11.19 @ 21:39:41 Player: Zeldest Result: Destroyed by G-47 Trooper with Particle Gun Performance ------------- Evolutions (2) 1000 Regions Visited (5) 1000 Robots Destroyed (0) 0 Value Destroyed (0) 0 Prototype IDs (0) 0 Alien Tech Used (0) 0 Bonus (470) 470 TOTAL SCORE: 2470 Bonus ------- Pacifist 470 Cogmind --------- Core Integrity 0/550 Matter 300/300 Energy 99/100 System Corruption 0% Temperature Cool (19) Movement Core (50) Location -8/Materials Parts ------- > --- POWER (2) -------- (None) > --- PROPULSION (5) --- (None) > --- UTILITY (2) ------ (None) > --- WEAPON (2) ------- (None) > --- INVENTORY (5) ---- Light Deuterium Engine Light Deuterium Engine Heavy Missile Launcher Peak State ------------ > --- POWER ------------ (None) > --- PROPULSION ------- Flight Unit > --- UTILITY ---------- (None) > --- WEAPON ----------- (None) > --- INVENTORY -------- Light Deuterium Engine Light Deuterium Engine Heavy Missile Launcher [Rating: 2] Favorites ----------- Power None Propulsion Flight Unit Flight Unit Flight Unit Utility None Weapon None Build | -11 -10 -10 -9 -9 -8 ------- Run | Yrd Mat Min Mat Min Mat Slots Evolved 4 | . . . 2 . 2 Power 1 | . . . . . 1 Propulsion 3 | . . . 2 . 1 Utility . | . . . . . . Weapon . | . . . . . . Parts Attached 1 | . . . . . 1 Power . | . . . . . . Engine . | . . . . . . Core . | . . . . . . Reactor . | . . . . . . Propulsion 1 | . . . . . 1 Treads . | . . . . . . Leg . | . . . . . . Wheel . | . . . . . . Hover . | . . . . . . Flight 1 | . . . . . 1 Utility . | . . . . . . Device . | . . . . . . Storage . | . . . . . . Processor . | . . . . . . Hackware . | . . . . . . Protection . | . . . . . . Artifact . | . . . . . . Weapon . | . . . . . . Energy Gun . | . . . . . . Energy Cannon . | . . . . . . Ballistic Gun . | . . . . . . Ballistic Cannon . | . . . . . . Launcher . | . . . . . . Special Weapon . | . . . . . . Impact Weapon . | . . . . . . Slashing Weapon . | . . . . . . Piercing Weapon . | . . . . . . Special Melee Weapon . | . . . . . . Unidentified Prototypes . | . . . . . . Parts Lost 1 | . . . . . 1 Power . | . . . . . . Propulsion 1 | . . . . . 1 Utility . | . . . . . . Weapon . | . . . . . . Highest Loss Streak 1 | . . . . . 1 To Critical Strikes . | . . . . . . Average Slot Usage (%) 1 | . . . . . 5 Flight 1 | . . . . . 5 Peak Build Rating 2 | . . . . . 2 Average Rating . | . . . . . 1 On Entrance . | . . . . . . Naked Turns 391 | . 19 80 60 182 50 Heaviest Build . | . . . . . . Greatest Support 4 | 3 3 3 3 3 4 Greatest Overweight (x) . | . . . . . . Average Overweight (x) . | . . . . . . Largest Inventory Capacity 5 | 5 5 5 5 5 5 Average Capacity 5 | 5 5 5 5 5 5 Most Carried 3 | . . . . 1 3 Average Carried . | . . . . . 2 Final Capacity 5 | 5 5 5 5 5 5 Final Carried 3 | . . . . 1 3 Class Distribution -------------------- 100% | Mutant Dominant Class ---------------- Mutant | -10/Materials Mutant | -10/Mines Mutant | -9/Materials Mutant | -9/Mines Mutant | -8/Materials Resources | -11 -10 -10 -9 -9 -8 ----------- Run | Yrd Mat Min Mat Min Mat Matter Collected 210 | 200 . . . . 10 Remotely . | . . . . . . Salvage Created . | . . . . . . Parts . | . . . . . . Haulers Intercepted . | . . . . . . Recyclers Shooed . | . . . . . . Parts Field Recycled . | . . . . . . Retrieved Matter . | . . . . . . Parts Self-Destructed . | . . . . . . Prevented . | . . . . . . Kills | -11 -10 -10 -9 -9 -8 ------- Run | Yrd Mat Min Mat Min Mat Combat Hostiles Destroyed . | . . . . . . Classes Destroyed . | . . . . . . Best Kill Streak . | . . . . . . Combat Bots Only . | . . . . . . Max Kills in Single Turn . | . . . . . . Gunslinging . | . . . . . . Exploded . | . . . . . . Melee . | . . . . . . Uniques/NPCs Destroyed . | . . . . . . Combat | -11 -10 -10 -9 -9 -8 -------- Run | Yrd Mat Min Mat Min Mat Hostile Shots Fired 91 | . . 8 18 1 64 Missed 33 | . . 3 9 . 21 Damage Taken 844 | . . 165 86 8 585 Core 819 | . . 165 86 8 560 Absorbed by Shields . | . . . . . . Core Remaining (%) 70 | 100 . 34 . 76 . Volleys Fired . | . . . . . . Largest . | . . . . . . Hottest . | . . . . . . Shots Fired . | . . . . . . Gun . | . . . . . . Cannon . | . . . . . . Launcher . | . . . . . . Special . | . . . . . . Kinetic . | . . . . . . Thermal . | . . . . . . Explosive . | . . . . . . Electromagnetic . | . . . . . . Robot Hit Streak . | . . . . . . Robot Miss Streak . | . . . . . . Penetration Max . | . . . . . . Secondary Targets . | . . . . . . Shots Hit Robots . | . . . . . . Core Hits 1 | . . 1 . . . Critical Kills . | . . . . . . Critical Parts Destroyed . | . . . . . . Critical Strikes . | . . . . . . Melee Attacks . | . . . . . . Impact . | . . . . . . Slashing . | . . . . . . Piercing . | . . . . . . Sneak Attacks . | . . . . . . Combat Hostiles . | . . . . . . Follow-up Attacks . | . . . . . . Damage Inflicted 69 | . . 49 17 . 3 Guns . | . . . . . . Cannons . | . . . . . . Explosions . | . . . . . . Melee . | . . . . . . Ramming 69 | . . 49 17 . 3 Kinetic . | . . . . . . Thermal . | . . . . . . Explosive . | . . . . . . Electromagnetic . | . . . . . . Impact . | . . . . . . Slashing . | . . . . . . Piercing . | . . . . . . Highest Corruption 1 | . . 1 . . . Average Corruption 1 | . . 1 . . . Corruption Purged . | . . . . . . Corruption Blocked . | . . . . . . Effects 1 | . . 1 . . . Energy Discharges 1 | . . 1 . . . Overload Shots . | . . . . . . Overflow Damage 1 | . . 1 . . . Projectiles . | . . . . . . Explosions . | . . . . . . Melee 1 | . . 1 . . . Knockbacks . | . . . . . . Impact . | . . . . . . Kinetic . | . . . . . . Secondary . | . . . . . . Self-Inflicted Damage 32 | . . 23 8 . 1 Shots . | . . . . . . Rammed 14 | . . 9 3 . 2 Targets Rammed 14 | . . 9 3 . 2 Kicked . | . . . . . . Crushed . | . . . . . . Highest Temperature 14 | . . . . . 14 Average Temperature 7 | . . . . . 7 Received Heat Transfer 243 | . . . . . 243 Siege Activations . | . . . . . . Robots Corrupted . | . . . . . . Combat Hostiles . | . . . . . . Parts Fried . | . . . . . . Impact Corruptions 1 | . . 1 . . . Robots Melted . | . . . . . . Combat Hostiles . | . . . . . . Parts Melted . | . . . . . . Heat Transferred . | . . . . . . Parts Sabotaged . | . . . . . . Parts Stolen . | . . . . . . Parts Stripped . | . . . . . . Power Chain Reactions . | . . . . . . Alert | -11 -10 -10 -9 -9 -8 ------- Run | Yrd Mat Min Mat Min Mat Peak Influence 340 | . . 60 43 76 340 Initial 29 | . . . 23 16 29 Average 67 | . . 4 31 72 133 Maximum Alert Level 1 | . . . . . 1 Low Security (%) 91 | 100 100 100 100 100 68 Level 1 8 | . . . . . 31 Level 2 . | . . . . . . Level 3 . | . . . . . . Level 4 . | . . . . . . Level 5 . | . . . . . . High Security . | . . . . . . Max Security . | . . . . . . Squads Dispatched 1 | . . . . . 1 Investigation . | . . . . . . Extermination . | . . . . . . Reinforcement 1 | . . . . . 1 Assault . | . . . . . . Garrison . | . . . . . . Intercept . | . . . . . . Searches Triggered . | . . . . . . Construction Impeded . | . . . . . . Haulers Reinforced . | . . . . . . Active Scanning Responses . | . . . . . . Cargo Convoy Interrupts . | . . . . . . Stealth | -11 -10 -10 -9 -9 -8 --------- Run | Yrd Mat Min Mat Min Mat Distress Signals 3 | . . . . . 3 Communications Jammed . | . . . . . . Distress Signals . | . . . . . . Times Spotted 52 | . . 15 5 4 28 Peak Tracking Total 21 | . . 13 5 4 21 Tactical Retreats 4 | . . 1 . 1 2 Traps | -11 -10 -10 -9 -9 -8 ------- Run | Yrd Mat Min Mat Min Mat Traps Triggered 2 | . . . 2 . . Indirectly . | . . . . . . Trap Hack Attempts . | . . . . . . Triggered . | . . . . . . Disarmed . | . . . . . . Reprogrammed . | . . . . . . Reused . | . . . . . . Traps Extracted . | . . . . . . Installed . | . . . . . . Triggered . | . . . . . . Machines | -11 -10 -10 -9 -9 -8 ---------- Run | Yrd Mat Min Mat Min Mat Machines Disabled . | . . . . . . Max in Single Turn . | . . . . . . Machines Repaired . | . . . . . . Machines Dismantled . | . . . . . . Machines Sabotaged . | . . . . . . Overloaded Fab Kills . | . . . . . . Hacking | -11 -10 -10 -9 -9 -8 --------- Run | Yrd Mat Min Mat Min Mat Machines Accessed 4 | . . . 1 . 3 Terminals 4 | . . . 1 . 3 Fabricators . | . . . . . . Repair Stations . | . . . . . . Recycling Units . | . . . . . . Scanalyzers . | . . . . . . Garrison Access . | . . . . . . Total Hacks 11 | . . . 3 . 8 Successful 6 | . . . 1 . 5 Failed 5 | . . . 2 . 3 Catastrophic . | . . . . . . Database Lockouts . | . . . . . . Manual 10 | . . . 3 . 7 Terminals 11 | . . . 3 . 8 Fabricators . | . . . . . . Repair Stations . | . . . . . . Recycling Units . | . . . . . . Scanalyzers . | . . . . . . Garrison Access . | . . . . . . Terminal Hacks 1 | . . . . . 1 Locate Traps 1 | . . . . . 1 Fabricator Hacks . | . . . . . . Repair Station Hacks . | . . . . . . Recycling Unit Hacks . | . . . . . . Scanalyzer . | . . . . . . Garrison Access Hacks . | . . . . . . Unauthorized Hacks 5 | . . . 1 . 4 Terminals 5 | . . . 1 . 4 Track 2 | . . . . . 2 Botnet 3 | . . . 1 . 2 Fabricators . | . . . . . . Repair Stations . | . . . . . . Recycling Units . | . . . . . . Scanalyzers . | . . . . . . Garrison Access . | . . . . . . Data Cores Recovered . | . . . . . . Used . | . . . . . . Hacking Detections 3 | . . . 1 . 2 Full Trace Events . | . . . . . . Feedback Events . | . . . . . . Feedback Blocked . | . . . . . . Robot Schematics Acquired . | . . . . . . Robots Built . | . . . . . . Authchips . | . . . . . . Time . | . . . . . . Total Robot Build Rating . | . . . . . . Part Schematics Acquired . | . . . . . . Parts Built . | . . . . . . Authchips . | . . . . . . Time . | . . . . . . Total Part Build Rating . | . . . . . . Parts Repaired . | . . . . . . Time . | . . . . . . Parts Recycled . | . . . . . . Recycled Matter . | . . . . . . Retrieved Matter . | . . . . . . Retrieved Components . | . . . . . . Parts Scanalyzed . | . . . . . . Part Schematics Acquired . | . . . . . . Parts Damaged . | . . . . . . Bothacking | -11 -10 -10 -9 -9 -8 ------------ Run | Yrd Mat Min Mat Min Mat Used RIF Installer . | . . . . . . Robots Hacked . | . . . . . . Non-combat . | . . . . . . Combat . | . . . . . . Robot Hacks Applied . | . . . . . . Relay Couplers Released . | . . . . . . Fabnet Peak Effective % . | . . . . . . Robots Rewired . | . . . . . . Allies Hacked . | . . . . . . Hacks Repelled . | . . . . . . Allies | -11 -10 -10 -9 -9 -8 -------- Run | Yrd Mat Min Mat Min Mat Total Allies 2 | . . 2 . . . Largest Group 2 | . . 2 . . . Highest-Rated Group 50 | . . 50 . . . Highest-Rated Ally 31 | . . 31 . . . Total Orders . | . . . . . . Ally Attacks 6 | . . 6 . . . Total Damage . | . . . . . . Kills . | . . . . . . Allies Corrupted . | . . . . . . Allies Melted . | . . . . . . Intel | -11 -10 -10 -9 -9 -8 ------- Run | Yrd Mat Min Mat Min Mat Robot Analysis Total . | . . . . . . Derelict Logs Recovered 2 | . . 1 . 1 . Drone Launches . | . . . . . . Drone Recoveries . | . . . . . . Exploration | -11 -10 -10 -9 -9 -8 ------------- Run | Yrd Mat Min Mat Min Mat Turns Passed 483 | 13 19 80 60 182 129 Spaces Moved 947 | 26 38 142 113 358 270 Core 773 | 26 38 142 113 358 96 Treads . | . . . . . . Legs . | . . . . . . Wheels . | . . . . . . Hover . | . . . . . . Flight 174 | . . . . . 174 Fastest Speed 40 | 50 50 50 50 50 40 Average Speed 48 | 50 50 50 50 50 43 Slowest Speed 50 | 50 50 50 50 50 50 Overloaded Moves . | . . . . . . Propulsion Burnouts . | . . . . . . Robots Hopped 3 | . . . . . 3 Cave-ins Triggered . | . . . . . . Exploration Rate (%) 33 | 3 18 37 15 79 47 Regions Visited 5 Branch Regions 2 Pre-discovered Areas . | . . . . . . Known Exits Taken . | . . . . . . Unknown Exits Taken 5 | 1 1 1 1 1 . Scrap Searched 3 | . . 1 . 2 . Spaces Dug . | . . . . . . Terrain Destroyed . | . . . . . . Melee . | . . . . . . Projectile . | . . . . . . AOE . | . . . . . . Terrain Rammed . | . . . . . . Walls Destroyed . | . . . . . . Machines Disabled . | . . . . . . Actions | -11 -10 -10 -9 -9 -8 --------- Run | Yrd Mat Min Mat Min Mat Total 965 | 25 37 150 115 360 278 Wait 7 | . . . . 2 5 Move 936 | 25 37 141 112 357 264 Hop 3 | . . . . . 3 Pick Up 4 | . . . . 1 3 Fast Attach . | . . . . . . Attach 1 | . . . . . 1 Detach . | . . . . . . Swap . | . . . . . . Drop . | . . . . . . Fire . | . . . . . . Melee . | . . . . . . Ram 14 | . . 9 3 . 2 Kick . | . . . . . . Crush . | . . . . . . Escape Stasis . | . . . . . . Rewire . | . . . . . . Trap . | . . . . . . Miscellaneous . | . . . . . . Route ------- -11/Scrapyard -10/Materials -10/Mines -9/Materials -9/Mines -8/Materials History --------- Turn | Location | Event 4 | -11/Scrapyard | Discovered new exit (range 16) 14 | -11/Scrapyard | Entered Materials 31 | -10/Materials | Discovered new exit (range 6) 33 | -10/Materials | Entered Mines 34 | -10/Mines | Assembled infested the area 39 | -10/Mines | Assisted by a Guerilla fighting off Assembled 90 | -10/Mines | Learned Materials stockpile data 91 | -10/Mines | Core integrity fell below 50% 111 | -10/Mines | Discovered new exit (range 5) 113 | -10/Mines | Entered Materials 113 | -9/Materials | Evolved 2 slots: Propulsion x2 158 | -9/Materials | Discovered new exit (range 15) 173 | -9/Materials | Entered Mines 305 | -9/Mines | Build established: Mutant 345 | -9/Mines | Discovered new exit (range 10) 354 | -9/Mines | Received a Mining Laser from a helpful Derelict 355 | -9/Mines | Entered Materials 355 | -8/Materials | Evolved 2 slots: Power x1, Propulsion x1 458 | -8/Materials | Core integrity fell below 50% 482 | -8/Materials | Core integrity fell below 20% 484 | -8/Materials | Destroyed by G-47 Trooper with Particle Gun Last Messages --------------- M003. 00438_ K-01 Serf cleans the Scanalyzer. 00441_ K-01 Serf collects debris. 00442_ K-01 Serf cleans the Nuclear Reactor. 00446_ C-30 ARC bursts open, deploying its payload. 00446_ H-55 Commando unfolds itself. 00468_ Slammed into K-01 Serf. 00471_ Connecting with Terminal... >>Trojan(Track) Trojan loaded successfully. Testing... Tracking enabled and active. >>Traps(Locate) Found 4 traps in 1 array: 4x Shock Trap Map updated. 00479_ A-02 Transporter destroyed. 00480_ K-01 Serf collects debris. 00482_ Critical hit (Burn: +37). 00483_ K-01 Serf collects debris. Map ----- +----------------------------------------------------+ | ????????#] """%# [ ]#?# #???????? | | ????????# #########?######## #???????? | | ????????# % #????????????????# #???????? | | ????????###+####??????! #???????# #???????? | | ?????????# ### #???????# #######?? | | ?????????# T / ######### #?? | | ?????????# ### """ # ^^ ! #?? | | ?????????## ##????""""??# ^ = +?? | | ??????????# #?????????" # "#?? | | ??????????# ####?????"" # /^[ """ T#?? | | ??????????# +????"" ?# ![[ """ "#?? | | ???????#### #??? ??# ![ """ #?? | | ??????##! ####+##### """ #?? | | ??????#! """ ### | | ??????#! g | | ??????#! ![gg | | ??????#! ####+###][ #####+###### | | ??????##! ?? !#%[=#??????????# ########+ | | ???????###?# #][ #??????????# #????? | | ???????????# """ #= #??????????# #??? | | ???????????# """ # #??????????# #?# | | ???????????# """ # a#??????????# #?# | | ???????????# # k#??????????# #?# | | ???????????# ] #gg #??????????# #?# | | ???????????#######g #??????????# #?# | | ?????????????????#@ #??????????# #?####### | | ?????????????????# g############ ######## | | ????????????????? wa | | ???????????????? | | ??????????????? | | ?????????????? ############ ####+### | | ????????????? """ #??????????# #???????? | | ????????????? """ #??????????# #???????? | | ???????????? """ #??????????# #???????? | | ??????????? #??????????# #???????? | | ??????????? ?? +??????????# #???????? | | ?????????? ??? #??????????# #???????? | | ???????????? ???? #??????????# ######### | | ???????????? ????? #??????????# ## "T" | | ??????????????????? #??????????# ## | | ???????????????????? ??########## ##= | | ??????????????????? # = % | | ??????????????????? + | | ??????????????????? # | | ????????????????????################ | | ???????????????????????????????????# ! | | ???????????????????????????????????# | | ?????????????????????????????????#########+ | | ?????????????????????????????????# = # | | ?????????????????????????????????#! / | +----------------------------------------------------+ Best States ------------- Heat Dissipation 31 Energy Generation 5 Energy Capacity 100 Matter Stores 300 Matter Capacity 300 Sight Range 16 Terrain Scan Density 10 Evasion (%) 62 Item Schematics ----------------- None Robot Schematics ------------------ None Fabricated ------------ Nothing Alien Tech Used ----------------- None Achievements -------------- None Challenges ------------ None Game ------ Seed EfficiencyMassMegatreads Manual? 0 Play Time 00:11:37 Cumulative 52.7 hours Start 2024.11.19 @ 21:30:48 End 2024.11.19 @ 21:39:41 Sessions 1 Manual Loads 0 Difficulty Rogue Special Mode None Game No. 99 Rogue 99 Adventurer 0 Explorer 0 Win Type - Total 0 Types 0/0/0/0/0/0/0/0/0 Lore% 15 Gallery% 34 Achievement% 32 Wizard Run 0 Options --------- Layout 0 ASCII 0 Keyboard 1 Movement Numpad Keybinds 0 Fullscreen 1 Font 18/SmallcapsGlow Map View 76x50 Zoom Use 0% Tactical HUD 1 Map Filters NONE Filters NONE Steam 1 RUN: 71d4d0f7-509f-4d48-90f0-7e398cb9093c